[Event "Titled Tuesday Blitz February 22 Early 2022"]
[White "Van Foreest, Jorden"]
[Black "Erdogdu, Mert"]
[WhiteFideId "1039784"]
[BlackFideId "6301495"]
[WhiteElo "2609"]
[BlackElo "2485"]
[Result "1-0"]
[Round "06"]
[TimeControl "180+1"]
[Date "2022.02.22"]
[WhiteClock "0:01:42"]
[BlackClock "0:00:07"]

1. e4 {[%clk 0:03:00]}  c5 {[%clk 0:03:00]} 2. Nf3 {[%clk 0:03:01]}  d6 {[%clk 0:03:00]} 3. d4 {[%clk 0:03:01]}  cxd4 {[%clk 0:03:01]} 4. Nxd4 {[%clk 0:03:01]}  Nf6 {[%clk 0:03:01]} 5. Bd3 {[%clk 0:03:01]}  g6 {[%clk 0:03:00]} 6. O-O {[%clk 0:03:01]}  Bg7 {[%clk 0:03:00]} 7. c4 {[%clk 0:03:00]}  O-O {[%clk 0:03:00]} 8. Nc3 {[%clk 0:03:00]}  Nc6 {[%clk 0:02:54]} 9. Nde2 {[%clk 0:03:00]}  Ne5 {[%clk 0:02:51]} 10. b3 {[%clk 0:03:00]}  Nxd3 {[%clk 0:02:49]} 11. Qxd3 {[%clk 0:02:59]}  b6 {[%clk 0:02:43]} 12. Bb2 {[%clk 0:02:59]}  Bb7 {[%clk 0:02:43]} 13. h3 {[%clk 0:02:57]}  Nxe4 {[%clk 0:02:38]} 14. Qc2 {[%clk 0:02:52]}  Nxc3 {[%clk 0:02:33]} 15. Bxc3 {[%clk 0:02:52]}  Bxc3 {[%clk 0:02:31]} 16. Nxc3 {[%clk 0:02:52]}  Rc8 {[%clk 0:02:31]} 17. Rad1 {[%clk 0:02:51]}  Qc7 {[%clk 0:02:26]} 18. Rfe1 {[%clk 0:02:49]}  Rfe8 {[%clk 0:02:25]} 19. Re3 {[%clk 0:02:43]}  a6 {[%clk 0:02:15]} 20. Qe2 {[%clk 0:02:43]}  Bc6 {[%clk 0:01:54]} 21. a4 {[%clk 0:02:43]}  Qb7 {[%clk 0:01:53]} 22. Nd5 {[%clk 0:02:35]}  Bxd5 {[%clk 0:01:51]} 23. Rxd5 {[%clk 0:02:36]}  Kf8 {[%clk 0:01:34]} 24. h4 {[%clk 0:02:31]}  h5 {[%clk 0:01:26]} 25. Qb2 {[%clk 0:02:30]}  Kg8 {[%clk 0:01:23]} 26. Rxh5 {[%clk 0:02:29]}  e5 {[%clk 0:01:17]} 27. Rg5 {[%clk 0:02:29]}  Qe7 {[%clk 0:01:16]} 28. Qd2 {[%clk 0:02:24]}  b5 {[%clk 0:01:10]} 29. axb5 {[%clk 0:02:21]}  axb5 {[%clk 0:01:11]} 30. cxb5 {[%clk 0:02:22]}  Rc5 {[%clk 0:01:09]} 31. Reg3 {[%clk 0:02:18]}  e4 {[%clk 0:00:48]} 32. Rxc5 {[%clk 0:02:12]}  dxc5 {[%clk 0:00:49]} 33. h5 {[%clk 0:02:13]}  Kg7 {[%clk 0:00:47]} 34. hxg6 {[%clk 0:02:04]}  fxg6 {[%clk 0:00:47]} 35. Rh3 {[%clk 0:02:03]}  g5 {[%clk 0:00:43]} 36. b6 {[%clk 0:02:01]}  Qe5 {[%clk 0:00:41]} 37. b7 {[%clk 0:01:55]}  Kg6 {[%clk 0:00:32]} 38. Qd7 {[%clk 0:01:46]}  Qa1+ {[%clk 0:00:28]} 39. Kh2 {[%clk 0:01:46]}  Qe5+ {[%clk 0:00:27]} 40. g3 {[%clk 0:01:47]}  Rh8 {[%clk 0:00:13]} 41. Rxh8 {[%clk 0:01:46]}  Qxh8+ {[%clk 0:00:13]} 42. Kg2 {[%clk 0:01:47]}  Qf6 {[%clk 0:00:08]} 43. Qe8+ {[%clk 0:01:45]}  Kh6 {[%clk 0:00:08]} 44. b8=Q {[%clk 0:01:41]}  Qf3+ {[%clk 0:00:08]} 45. Kg1 {[%clk 0:01:42]}  Qd1+ {[%clk 0:00:07]} 46. Kh2 {[%clk 0:01:42]} 1-0


[Site "https://www.chess.com"]

[Event "Titled Tuesday Blitz February 22 Early 2022"]
[White "Van den Dikkenberg, Erik"]
[Black "Danaci, Ege"]
[WhiteFideId "1005880"]
[BlackFideId "34506748"]
[WhiteElo "2118"]
[BlackElo "1799"]
[Result "0-1"]
[Round "06"]
[TimeControl "180+1"]
[Date "2022.02.22"]
[WhiteClock "0:00:38"]
[BlackClock "0:00:21"]

1. e4 {[%clk 0:03:00]}  c6 {[%clk 0:02:59]} 2. d4 {[%clk 0:03:00]}  d5 {[%clk 0:02:59]} 3. exd5 {[%clk 0:03:01]}  cxd5 {[%clk 0:03:00]} 4. Bd3 {[%clk 0:03:01]}  Nc6 {[%clk 0:03:00]} 5. c3 {[%clk 0:03:01]}  Nf6 {[%clk 0:02:58]} 6. Bf4 {[%clk 0:02:58]}  g6 {[%clk 0:02:58]} 7. Nd2 {[%clk 0:02:56]}  Bf5 {[%clk 0:02:59]} 8. Bxf5 {[%clk 0:02:55]}  gxf5 {[%clk 0:03:00]} 9. Ngf3 {[%clk 0:02:55]}  e6 {[%clk 0:03:00]} 10. O-O {[%clk 0:02:53]}  Be7 {[%clk 0:03:01]} 11. Ne5 {[%clk 0:02:52]}  Nxe5 {[%clk 0:02:51]} 12. Bxe5 {[%clk 0:02:52]}  Rg8 {[%clk 0:02:51]} 13. Bxf6 {[%clk 0:02:49]}  Bxf6 {[%clk 0:02:51]} 14. Nf3 {[%clk 0:02:49]}  Qc7 {[%clk 0:02:49]} 15. Kh1 {[%clk 0:02:46]}  Ke7 {[%clk 0:02:42]} 16. a4 {[%clk 0:02:39]}  h5 {[%clk 0:02:38]} 17. Re1 {[%clk 0:02:31]}  h4 {[%clk 0:02:36]} 18. h3 {[%clk 0:02:31]}  Qf4 {[%clk 0:02:31]} 19. Qb3 {[%clk 0:02:27]}  b6 {[%clk 0:02:21]} 20. Qxd5 {[%clk 0:02:22]}  Rad8 {[%clk 0:02:11]} 21. Qc6 {[%clk 0:02:14]}  Rc8 {[%clk 0:01:54]} 22. Qb5 {[%clk 0:02:00]}  Rxg2 {[%clk 0:01:26]} 23. Qb4+ {[%clk 0:01:37]}  Kd7 {[%clk 0:01:26]} 24. Qb5+ {[%clk 0:01:27]}  Kc7 {[%clk 0:01:26]} 25. Qc4+ {[%clk 0:01:25]}  Kb7 {[%clk 0:01:26]} 26. Qxc8+ {[%clk 0:01:23]}  Kxc8 {[%clk 0:01:24]} 27. Kxg2 {[%clk 0:01:24]}  Qd6 {[%clk 0:01:15]} 28. Ne5 {[%clk 0:01:21]}  Qd5+ {[%clk 0:01:12]} 29. f3 {[%clk 0:01:21]}  Qb3 {[%clk 0:00:35]} 30. Re2 {[%clk 0:01:15]}  Bxe5 {[%clk 0:00:35]} 31. dxe5 {[%clk 0:01:14]}  Qc4 {[%clk 0:00:36]} 32. Rae1 {[%clk 0:00:49]}  Qf4 {[%clk 0:00:34]} 33. Kf2 {[%clk 0:00:47]}  Qg3+ {[%clk 0:00:32]} 34. Ke3 {[%clk 0:00:45]}  Qxh3 {[%clk 0:00:22]} 35. Kd4 {[%clk 0:00:38]}  Qxf3 {[%clk 0:00:21]} 36. Re3 {[%clk 0:00:38]}  Qd5# {[%clk 0:00:21]} 0-1


[Site "https://www.chess.com"]

[Event "Titled Tuesday Blitz February 22 Early 2022"]
[White "Vine, Elzbieta"]
[Black "Xu, Yuanyuan"]
[WhiteFideId "1119320"]
[BlackFideId "8601089"]
[WhiteElo "1890"]
[BlackElo "2281"]
[Result "0-1"]
[Round "06"]
[TimeControl "180+1"]
[Date "2022.02.22"]
[WhiteClock "0:00:03"]
[BlackClock "0:01:18"]

1. e4 {[%clk 0:02:54]}  c6 {[%clk 0:02:55]} 2. d4 {[%clk 0:02:53]}  d5 {[%clk 0:02:55]} 3. e5 {[%clk 0:02:44]}  Bf5 {[%clk 0:02:53]} 4. Bd3 {[%clk 0:02:41]}  Bxd3 {[%clk 0:02:51]} 5. Qxd3 {[%clk 0:02:40]}  e6 {[%clk 0:02:52]} 6. Nf3 {[%clk 0:02:38]}  Qb6 {[%clk 0:02:48]} 7. Nc3 {[%clk 0:02:35]}  c5 {[%clk 0:02:45]} 8. Be3 {[%clk 0:02:12]}  Nc6 {[%clk 0:02:28]} 9. dxc5 {[%clk 0:02:02]}  Bxc5 {[%clk 0:02:26]} 10. Bxc5 {[%clk 0:01:55]}  Qxc5 {[%clk 0:02:26]} 11. O-O {[%clk 0:01:53]}  Nge7 {[%clk 0:02:22]} 12. Rae1 {[%clk 0:01:49]}  O-O {[%clk 0:02:21]} 13. Ng5 {[%clk 0:01:47]}  Ng6 {[%clk 0:02:20]} 14. h4 {[%clk 0:01:45]}  Nb4 {[%clk 0:02:14]} 15. Qe2 {[%clk 0:01:35]}  h6 {[%clk 0:02:09]} 16. a3 {[%clk 0:01:17]}  Nc6 {[%clk 0:02:00]} 17. Nf3 {[%clk 0:00:34]}  Rac8 {[%clk 0:01:42]} 18. h5 {[%clk 0:00:32]}  Nf4 {[%clk 0:01:38]} 19. Qd2 {[%clk 0:00:29]}  Nxh5 {[%clk 0:01:30]} 20. Nh4 {[%clk 0:00:15]}  Qd4 {[%clk 0:01:23]} 21. Qc1 {[%clk 0:00:09]}  Qxh4 {[%clk 0:01:22]} 22. Ne2 {[%clk 0:00:05]}  Nxe5 {[%clk 0:01:19]} 23. f4 {[%clk 0:00:03]}  Nd3 {[%clk 0:01:18]} 0-1


[Site "https://www.chess.com"]

[Event "Titled Tuesday Blitz February 22 Early 2022"]
[White "Vlassov, Nikolai"]
[Black "Indjic, Aleksandar"]
[WhiteFideId "4103360"]
[BlackFideId "911925"]
[WhiteElo "2407"]
[BlackElo "2616"]
[Result "0-1"]
[Round "06"]
[TimeControl "180+1"]
[Date "2022.02.22"]
[WhiteClock "0:00:04"]
[BlackClock "0:00:12"]

1. e4 {[%clk 0:03:00]}  c6 {[%clk 0:02:59]} 2. d4 {[%clk 0:03:00]}  d5 {[%clk 0:03:00]} 3. e5 {[%clk 0:03:01]}  c5 {[%clk 0:03:00]} 4. dxc5 {[%clk 0:03:01]}  e6 {[%clk 0:02:59]} 5. Nf3 {[%clk 0:03:01]}  Bxc5 {[%clk 0:02:58]} 6. Bd3 {[%clk 0:03:01]}  Ne7 {[%clk 0:02:58]} 7. O-O {[%clk 0:03:02]}  Ng6 {[%clk 0:02:58]} 8. c3 {[%clk 0:03:01]}  Nc6 {[%clk 0:02:56]} 9. Qe2 {[%clk 0:03:01]}  f6 {[%clk 0:02:50]} 10. b4 {[%clk 0:02:53]}  Bb6 {[%clk 0:02:49]} 11. Bxg6+ {[%clk 0:02:35]}  hxg6 {[%clk 0:02:47]} 12. b5 {[%clk 0:02:29]}  Nxe5 {[%clk 0:02:34]} 13. Nxe5 {[%clk 0:02:28]}  fxe5 {[%clk 0:02:35]} 14. Qg4 {[%clk 0:01:59]}  Qf6 {[%clk 0:02:33]} 15. Be3 {[%clk 0:01:51]}  d4 {[%clk 0:02:22]} 16. Bg5 {[%clk 0:01:43]}  Qf5 {[%clk 0:02:21]} 17. Qg3 {[%clk 0:01:40]}  Bd7 {[%clk 0:02:16]} 18. a4 {[%clk 0:01:38]}  O-O {[%clk 0:02:12]} 19. h4 {[%clk 0:01:29]}  Rac8 {[%clk 0:02:09]} 20. Ra3 {[%clk 0:01:25]}  Bc7 {[%clk 0:01:35]} 21. cxd4 {[%clk 0:01:09]}  exd4 {[%clk 0:01:34]} 22. Qb3 {[%clk 0:01:06]}  Kh8 {[%clk 0:01:25]} 23. Nd2 {[%clk 0:01:04]}  Bd6 {[%clk 0:01:24]} 24. Ra2 {[%clk 0:01:02]}  Rc3 {[%clk 0:01:23]} 25. Qb1 {[%clk 0:00:56]}  d3 {[%clk 0:01:16]} 26. f3 {[%clk 0:00:45]}  Qe5 {[%clk 0:00:48]} 27. Ne4 {[%clk 0:00:41]}  Rfc8 {[%clk 0:00:39]} 28. Rd2 {[%clk 0:00:17]}  Rc2 {[%clk 0:00:37]} 29. Rfd1 {[%clk 0:00:11]}  Qh2+ {[%clk 0:00:35]} 30. Kf2 {[%clk 0:00:11]}  Bc7 {[%clk 0:00:30]} 31. Ke3 {[%clk 0:00:10]}  Bb6+ {[%clk 0:00:21]} 32. Kxd3 {[%clk 0:00:10]}  R2c4 {[%clk 0:00:21]} 33. Be3 {[%clk 0:00:08]}  e5 {[%clk 0:00:19]} 34. Bxb6 {[%clk 0:00:08]}  axb6 {[%clk 0:00:20]} 35. Ke3 {[%clk 0:00:07]}  Bf5 {[%clk 0:00:20]} 36. Qb2 {[%clk 0:00:06]}  Bxe4 {[%clk 0:00:19]} 37. fxe4 {[%clk 0:00:07]}  Qg3+ {[%clk 0:00:19]} 38. Ke2 {[%clk 0:00:07]}  Qxg2+ {[%clk 0:00:19]} 39. Ke1 {[%clk 0:00:05]}  Qh1+ {[%clk 0:00:13]} 40. Ke2 {[%clk 0:00:04]}  Rxe4+ {[%clk 0:00:13]} 41. Kd3 {[%clk 0:00:04]}  Qf3# {[%clk 0:00:12]} 0-1


[Site "https://www.chess.com"]

[Event "Titled Tuesday Blitz February 22 Early 2022"]
[White "Volkov, Maksim"]
[Black "Richter, Nils"]
[WhiteFideId "54123070"]
[BlackFideId "12990809"]
[WhiteElo "2081"]
[BlackElo "2289"]
[Result "1-0"]
[Round "06"]
[TimeControl "180+1"]
[Date "2022.02.22"]
[WhiteClock "0:00:23"]
[BlackClock "0:00:17"]

1. d4 {[%clk 0:02:58]}  Nf6 {[%clk 0:02:59]} 2. c4 {[%clk 0:02:58]}  b6 {[%clk 0:02:59]} 3. Nc3 {[%clk 0:02:55]}  Bb7 {[%clk 0:02:59]} 4. d5 {[%clk 0:02:55]}  e6 {[%clk 0:02:58]} 5. e4 {[%clk 0:02:50]}  exd5 {[%clk 0:02:57]} 6. cxd5 {[%clk 0:02:49]}  Bb4 {[%clk 0:02:55]} 7. Bd3 {[%clk 0:02:39]}  O-O {[%clk 0:02:55]} 8. Ne2 {[%clk 0:02:37]}  Re8 {[%clk 0:02:52]} 9. O-O {[%clk 0:02:36]}  Na6 {[%clk 0:02:49]} 10. f3 {[%clk 0:02:27]}  Nc5 {[%clk 0:02:48]} 11. Bc2 {[%clk 0:02:26]}  Ba6 {[%clk 0:02:46]} 12. Re1 {[%clk 0:02:24]}  Bxe2 {[%clk 0:02:45]} 13. Rxe2 {[%clk 0:02:23]}  Bxc3 {[%clk 0:02:41]} 14. bxc3 {[%clk 0:02:22]}  d6 {[%clk 0:02:40]} 15. Bg5 {[%clk 0:02:21]}  h6 {[%clk 0:02:38]} 16. Bh4 {[%clk 0:02:21]}  g5 {[%clk 0:02:38]} 17. Bf2 {[%clk 0:02:21]}  Nh5 {[%clk 0:02:37]} 18. Qd4 {[%clk 0:02:19]}  Qf6 {[%clk 0:02:36]} 19. Qc4 {[%clk 0:02:16]}  Nf4 {[%clk 0:02:34]} 20. Ree1 {[%clk 0:02:15]}  h5 {[%clk 0:02:28]} 21. Bd4 {[%clk 0:02:14]}  Qh6 {[%clk 0:02:27]} 22. e5 {[%clk 0:02:11]}  Re7 {[%clk 0:02:21]} 23. exd6 {[%clk 0:02:07]}  Rxe1+ {[%clk 0:02:20]} 24. Rxe1 {[%clk 0:02:08]}  cxd6 {[%clk 0:02:18]} 25. Qb5 {[%clk 0:02:04]}  Rf8 {[%clk 0:02:03]} 26. c4 {[%clk 0:01:50]}  h4 {[%clk 0:02:02]} 27. h3 {[%clk 0:01:49]}  Ncd3 {[%clk 0:01:52]} 28. Re3 {[%clk 0:01:44]}  g4 {[%clk 0:01:37]} 29. fxg4 {[%clk 0:01:35]}  Ne5 {[%clk 0:01:15]} 30. Re1 {[%clk 0:01:16]}  Rc8 {[%clk 0:01:12]} 31. Bb1 {[%clk 0:01:07]}  Nxg2 {[%clk 0:00:59]} 32. Kxg2 {[%clk 0:00:39]}  Qd2+ {[%clk 0:00:57]} 33. Bf2 {[%clk 0:00:39]}  Qc3 {[%clk 0:00:32]} 34. Qb3 {[%clk 0:00:36]}  Rxc4 {[%clk 0:00:28]} 35. Qxc3 {[%clk 0:00:35]}  Rxc3 {[%clk 0:00:29]} 36. Bxh4 {[%clk 0:00:34]}  Kg7 {[%clk 0:00:23]} 37. Bg3 {[%clk 0:00:28]}  Nc4 {[%clk 0:00:21]} 38. Bf2 {[%clk 0:00:23]}  Nd2 {[%clk 0:00:17]} 39. Bd4+ {[%clk 0:00:23]} 1-0


[Site "https://www.chess.com"]

[Event "Titled Tuesday Blitz February 22 Early 2022"]
[White "Warchol, Kamil"]
[Black "Kozin, Yuri"]
[WhiteFideId "21858241"]
[BlackFideId "4129920"]
[WhiteElo "1905"]
[BlackElo "2559"]
[Result "1/2-1/2"]
[Round "06"]
[TimeControl "180+1"]
[Date "2022.02.22"]
[WhiteClock "0:00:18"]
[BlackClock "0:00:13"]

1. e4 {[%clk 0:03:00]}  c5 {[%clk 0:03:00]} 2. Nf3 {[%clk 0:02:59]}  e6 {[%clk 0:03:00]} 3. d4 {[%clk 0:02:59]}  cxd4 {[%clk 0:03:01]} 4. Nxd4 {[%clk 0:02:59]}  a6 {[%clk 0:03:01]} 5. c4 {[%clk 0:02:59]}  Qc7 {[%clk 0:03:01]} 6. Nc3 {[%clk 0:02:58]}  Nf6 {[%clk 0:03:02]} 7. Be2 {[%clk 0:02:52]}  Bb4 {[%clk 0:02:56]} 8. f3 {[%clk 0:02:50]}  Nc6 {[%clk 0:02:53]} 9. Nc2 {[%clk 0:02:47]}  Be7 {[%clk 0:02:51]} 10. Be3 {[%clk 0:02:45]}  Ne5 {[%clk 0:02:51]} 11. Qd4 {[%clk 0:02:31]}  O-O {[%clk 0:02:39]} 12. O-O {[%clk 0:02:26]}  d6 {[%clk 0:02:39]} 13. Rad1 {[%clk 0:02:22]}  Bd7 {[%clk 0:02:38]} 14. Kh1 {[%clk 0:02:17]}  Rac8 {[%clk 0:02:38]} 15. Na3 {[%clk 0:02:09]}  Rfd8 {[%clk 0:02:27]} 16. Rc1 {[%clk 0:02:06]}  Qb8 {[%clk 0:02:23]} 17. Rfd1 {[%clk 0:02:04]}  Bc6 {[%clk 0:02:16]} 18. Nc2 {[%clk 0:01:53]}  b5 {[%clk 0:02:11]} 19. Nb4 {[%clk 0:01:45]}  bxc4 {[%clk 0:01:54]} 20. Nxc6 {[%clk 0:01:20]}  Rxc6 {[%clk 0:01:52]} 21. Rc2 {[%clk 0:01:15]}  Rdc8 {[%clk 0:01:43]} 22. Rcd2 {[%clk 0:01:11]}  Ned7 {[%clk 0:01:25]} 23. Rc2 {[%clk 0:01:00]}  Rb6 {[%clk 0:01:22]} 24. Qd2 {[%clk 0:00:59]}  Rbc6 {[%clk 0:01:14]} 25. f4 {[%clk 0:00:58]}  Nc5 {[%clk 0:01:08]} 26. Bf3 {[%clk 0:00:58]}  Nd3 {[%clk 0:00:59]} 27. e5 {[%clk 0:00:55]}  dxe5 {[%clk 0:00:45]} 28. fxe5 {[%clk 0:00:51]}  Qxe5 {[%clk 0:00:43]} 29. Bxc6 {[%clk 0:00:50]}  Rxc6 {[%clk 0:00:44]} 30. Bg1 {[%clk 0:00:48]}  h5 {[%clk 0:00:42]} 31. Qe2 {[%clk 0:00:47]}  Qf4 {[%clk 0:00:36]} 32. Rf1 {[%clk 0:00:44]}  Qh4 {[%clk 0:00:32]} 33. g3 {[%clk 0:00:39]}  Qg5 {[%clk 0:00:30]} 34. Ne4 {[%clk 0:00:37]}  Qg6 {[%clk 0:00:24]} 35. Nxf6+ {[%clk 0:00:32]}  Bxf6 {[%clk 0:00:24]} 36. b3 {[%clk 0:00:29]}  Ne5 {[%clk 0:00:16]} 37. bxc4 {[%clk 0:00:26]}  h4 {[%clk 0:00:16]} 38. Bf2 {[%clk 0:00:25]}  h3 {[%clk 0:00:16]} 39. Bd4 {[%clk 0:00:23]}  Ng4 {[%clk 0:00:13]} 40. Bxf6 {[%clk 0:00:21]}  Nxf6 {[%clk 0:00:14]} 41. c5 {[%clk 0:00:20]}  Nd5 {[%clk 0:00:13]} 42. Rc4 {[%clk 0:00:18]} 1/2-1/2


[Site "https://www.chess.com"]

[Event "Titled Tuesday Blitz February 22 Early 2022"]
[White "Winkels, Marcel"]
[Black "Escudero Donoso, Felipe"]
[WhiteFideId "1003887"]
[BlackFideId "3410595"]
[WhiteElo "1900"]
[BlackElo "2184"]
[Result "0-1"]
[Round "06"]
[TimeControl "180+1"]
[Date "2022.02.22"]
[WhiteClock "0:00:01"]
[BlackClock "0:00:55"]

1. e4 {[%clk 0:03:00]}  c5 {[%clk 0:03:00]} 2. b3 {[%clk 0:03:00]}  d5 {[%clk 0:02:55]} 3. exd5 {[%clk 0:02:59]}  Qxd5 {[%clk 0:02:55]} 4. Nc3 {[%clk 0:02:59]}  Qd8 {[%clk 0:02:55]} 5. Bb2 {[%clk 0:02:59]}  Nc6 {[%clk 0:02:55]} 6. Bb5 {[%clk 0:02:54]}  Bd7 {[%clk 0:02:55]} 7. Nf3 {[%clk 0:02:53]}  Nf6 {[%clk 0:02:55]} 8. Qe2 {[%clk 0:02:43]}  e6 {[%clk 0:02:54]} 9. O-O-O {[%clk 0:02:38]}  Be7 {[%clk 0:02:47]} 10. d4 {[%clk 0:02:33]}  cxd4 {[%clk 0:02:40]} 11. Nxd4 {[%clk 0:02:32]}  Qc7 {[%clk 0:02:30]} 12. Rhe1 {[%clk 0:02:19]}  O-O {[%clk 0:02:22]} 13. Bxc6 {[%clk 0:01:57]}  Bxc6 {[%clk 0:02:16]} 14. g4 {[%clk 0:01:55]}  Qf4+ {[%clk 0:02:14]} 15. Kb1 {[%clk 0:01:47]}  Rad8 {[%clk 0:01:50]} 16. Nxc6 {[%clk 0:01:36]}  bxc6 {[%clk 0:01:50]} 17. f3 {[%clk 0:01:33]}  Nd5 {[%clk 0:01:48]} 18. Ne4 {[%clk 0:01:18]}  f6 {[%clk 0:01:48]} 19. Nd2 {[%clk 0:01:14]}  Bb4 {[%clk 0:01:44]} 20. Qxe6+ {[%clk 0:00:46]}  Kh8 {[%clk 0:01:41]} 21. Re2 {[%clk 0:00:40]}  Nc3+ {[%clk 0:01:35]} 22. Bxc3 {[%clk 0:00:39]}  Bxc3 {[%clk 0:01:36]} 23. Qc4 {[%clk 0:00:31]}  Qxc4 {[%clk 0:01:21]} 24. bxc4 {[%clk 0:00:30]}  Rb8+ {[%clk 0:01:03]} 25. Nb3 {[%clk 0:00:26]}  a5 {[%clk 0:00:59]} 26. Rd3 {[%clk 0:00:25]}  Be5 {[%clk 0:00:56]} 27. Kc1 {[%clk 0:00:17]}  a4 {[%clk 0:00:56]} 28. Nd4 {[%clk 0:00:16]}  Bf4+ {[%clk 0:00:56]} 29. Red2 {[%clk 0:00:01]}  Bxd2+ {[%clk 0:00:55]} 0-1


[Site "https://www.chess.com"]

[Event "Titled Tuesday Blitz February 22 Early 2022"]
[White "Yeletsky, Ivan"]
[Black "Borisova, Ekaterina"]
[WhiteFideId "24180327"]
[BlackFideId "34124184"]
[WhiteElo "2348"]
[BlackElo "2034"]
[Result "1-0"]
[Round "06"]
[TimeControl "180+1"]
[Date "2022.02.22"]
[WhiteClock "0:00:11"]
[BlackClock "0:00:05"]

1. e4 {[%clk 0:02:49]}  c6 {[%clk 0:02:59]} 2. Nc3 {[%clk 0:02:47]}  d5 {[%clk 0:02:59]} 3. Qf3 {[%clk 0:02:47]}  dxe4 {[%clk 0:02:57]} 4. Nxe4 {[%clk 0:02:46]}  Nf6 {[%clk 0:02:57]} 5. Nxf6+ {[%clk 0:02:46]}  exf6 {[%clk 0:02:58]} 6. Bc4 {[%clk 0:02:44]}  Bd6 {[%clk 0:02:58]} 7. Ne2 {[%clk 0:02:37]}  O-O {[%clk 0:02:57]} 8. O-O {[%clk 0:02:37]}  Nd7 {[%clk 0:02:54]} 9. d4 {[%clk 0:02:36]}  c5 {[%clk 0:02:51]} 10. Bf4 {[%clk 0:02:21]}  Bxf4 {[%clk 0:02:46]} 11. Qxf4 {[%clk 0:02:22]}  cxd4 {[%clk 0:02:46]} 12. Qxd4 {[%clk 0:02:21]}  Ne5 {[%clk 0:02:45]} 13. Bb3 {[%clk 0:02:19]}  Bg4 {[%clk 0:02:32]} 14. f3 {[%clk 0:02:19]}  Bf5 {[%clk 0:02:28]} 15. Rfd1 {[%clk 0:02:15]}  Qc7 {[%clk 0:02:17]} 16. Qd6 {[%clk 0:02:14]}  Rac8 {[%clk 0:02:10]} 17. Qxc7 {[%clk 0:02:12]}  Rxc7 {[%clk 0:02:10]} 18. Nd4 {[%clk 0:02:13]}  Bd7 {[%clk 0:02:04]} 19. c3 {[%clk 0:02:07]}  g6 {[%clk 0:02:02]} 20. Nc2 {[%clk 0:02:03]}  Kg7 {[%clk 0:01:58]} 21. Ne3 {[%clk 0:01:58]}  Bc6 {[%clk 0:01:53]} 22. Rd4 {[%clk 0:01:40]}  Re8 {[%clk 0:01:51]} 23. Kf2 {[%clk 0:01:39]}  Nd7 {[%clk 0:01:39]} 24. Rad1 {[%clk 0:01:34]}  Nc5 {[%clk 0:01:39]} 25. Bd5 {[%clk 0:01:25]}  f5 {[%clk 0:01:14]} 26. Bxc6 {[%clk 0:01:22]}  Rxc6 {[%clk 0:01:12]} 27. Nd5 {[%clk 0:01:21]}  Ne6 {[%clk 0:01:00]} 28. R4d2 {[%clk 0:01:10]}  Rd8 {[%clk 0:00:57]} 29. Ne7 {[%clk 0:01:04]}  Rxd2+ {[%clk 0:00:53]} 30. Rxd2 {[%clk 0:01:04]}  Rc7 {[%clk 0:00:47]} 31. Nd5 {[%clk 0:01:04]}  Rd7 {[%clk 0:00:46]} 32. Ke3 {[%clk 0:01:03]}  f4+ {[%clk 0:00:33]} 33. Nxf4 {[%clk 0:01:00]}  Re7 {[%clk 0:00:26]} 34. Nxe6+ {[%clk 0:01:00]}  Rxe6+ {[%clk 0:00:27]} 35. Kf2 {[%clk 0:01:01]}  Kf6 {[%clk 0:00:25]} 36. Rd7 {[%clk 0:01:00]}  Rb6 {[%clk 0:00:25]} 37. b3 {[%clk 0:01:00]}  Ra6 {[%clk 0:00:23]} 38. a4 {[%clk 0:00:58]}  Rc6 {[%clk 0:00:19]} 39. Rd3 {[%clk 0:00:49]}  a5 {[%clk 0:00:17]} 40. Ke3 {[%clk 0:00:47]}  Rb6 {[%clk 0:00:17]} 41. c4 {[%clk 0:00:44]}  Ke6 {[%clk 0:00:12]} 42. Kd4 {[%clk 0:00:44]}  Rd6+ {[%clk 0:00:10]} 43. Kc3 {[%clk 0:00:44]}  Rxd3+ {[%clk 0:00:04]} 44. Kxd3 {[%clk 0:00:44]}  Ke5 {[%clk 0:00:05]} 45. g3 {[%clk 0:00:43]}  g5 {[%clk 0:00:05]} 46. Kc3 {[%clk 0:00:26]}  f5 {[%clk 0:00:03]} 47. c5 {[%clk 0:00:16]}  Kd5 {[%clk 0:00:02]} 48. b4 {[%clk 0:00:16]}  h5 {[%clk 0:00:01]} 49. f4 {[%clk 0:00:12]}  gxf4 {[%clk 0:00:01]} 50. gxf4 {[%clk 0:00:13]}  h4 {[%clk 0:00:02]} 51. h3 {[%clk 0:00:08]}  Ke4 {[%clk 0:00:02]} 52. c6 {[%clk 0:00:06]}  axb4+ {[%clk 0:00:01]} 53. Kb3 {[%clk 0:00:06]}  bxc6 {[%clk 0:00:02]} 54. a5 {[%clk 0:00:06]}  Kxf4 {[%clk 0:00:03]} 55. a6 {[%clk 0:00:07]}  Kg3 {[%clk 0:00:04]} 56. a7 {[%clk 0:00:08]}  f4 {[%clk 0:00:04]} 57. a8=Q {[%clk 0:00:08]}  f3 {[%clk 0:00:05]} 58. Qxc6 {[%clk 0:00:08]}  f2 {[%clk 0:00:05]} 59. Qh1 {[%clk 0:00:08]}  Kf4 {[%clk 0:00:03]} 60. Qg2 {[%clk 0:00:09]}  Ke3 {[%clk 0:00:04]} 61. Qf1 {[%clk 0:00:09]}  Kf3 {[%clk 0:00:04]} 62. Kxb4 {[%clk 0:00:10]}  Kg3 {[%clk 0:00:05]} 63. Kc3 {[%clk 0:00:11]}  Kf3 {[%clk 0:00:05]} 64. Kd3 {[%clk 0:00:11]} 1-0


[Site "https://www.chess.com"]

[Event "Titled Tuesday Blitz February 22 Early 2022"]
[White "Zheenbekov, Nurgazy"]
[Black "Lopez Mulet, Inigo"]
[WhiteFideId "13800485"]
[BlackFideId "22235620"]
[WhiteElo "1959"]
[BlackElo "2315"]
[Result "1-0"]
[Round "06"]
[TimeControl "180+1"]
[Date "2022.02.22"]
[WhiteClock "0:01:10"]
[BlackClock "0:00:04"]

1. e4 {[%clk 0:02:59]}  e6 {[%clk 0:00:16]} 2. d4 {[%clk 0:02:55]}  b6 {[%clk 0:00:17]} 3. Nf3 {[%clk 0:02:52]}  Bb7 {[%clk 0:00:18]} 4. Nc3 {[%clk 0:02:52]}  Ne7 {[%clk 0:00:19]} 5. Bd3 {[%clk 0:02:49]}  d5 {[%clk 0:00:19]} 6. e5 {[%clk 0:02:46]}  c5 {[%clk 0:00:20]} 7. Nb5 {[%clk 0:02:07]}  Nec6 {[%clk 0:00:20]} 8. c3 {[%clk 0:02:07]}  a6 {[%clk 0:00:20]} 9. Na3 {[%clk 0:02:06]}  c4 {[%clk 0:00:21]} 10. Bb1 {[%clk 0:02:02]}  Bxa3 {[%clk 0:00:21]} 11. bxa3 {[%clk 0:02:01]}  b5 {[%clk 0:00:22]} 12. O-O {[%clk 0:02:00]}  Nd7 {[%clk 0:00:22]} 13. Ng5 {[%clk 0:01:56]}  h6 {[%clk 0:00:22]} 14. Qh5 {[%clk 0:01:56]}  Qe7 {[%clk 0:00:18]} 15. Nxf7 {[%clk 0:01:56]}  Qxf7 {[%clk 0:00:17]} 16. Bg6 {[%clk 0:01:55]}  Nd8 {[%clk 0:00:17]} 17. Bxf7+ {[%clk 0:01:51]}  Nxf7 {[%clk 0:00:18]} 18. Qg6 {[%clk 0:01:51]}  Rf8 {[%clk 0:00:17]} 19. Qxe6+ {[%clk 0:01:51]}  Kd8 {[%clk 0:00:18]} 20. a4 {[%clk 0:01:48]}  Kc7 {[%clk 0:00:18]} 21. axb5 {[%clk 0:01:46]}  axb5 {[%clk 0:00:19]} 22. a4 {[%clk 0:01:45]}  Ra6 {[%clk 0:00:19]} 23. Qe7 {[%clk 0:01:41]}  Nd8 {[%clk 0:00:11]} 24. Qxg7 {[%clk 0:01:36]}  bxa4 {[%clk 0:00:11]} 25. Ba3 {[%clk 0:01:35]}  Rf7 {[%clk 0:00:11]} 26. Bd6+ {[%clk 0:01:32]}  Kc8 {[%clk 0:00:10]} 27. Qxh6 {[%clk 0:01:26]}  Bc6 {[%clk 0:00:09]} 28. f4 {[%clk 0:01:26]}  Nf8 {[%clk 0:00:05]} 29. Bxf8 {[%clk 0:01:23]}  Bd7 {[%clk 0:00:05]} 30. Qxa6+ {[%clk 0:01:22]}  Nb7 {[%clk 0:00:05]} 31. Rfb1 {[%clk 0:01:16]}  Bf5 {[%clk 0:00:04]} 32. e6 {[%clk 0:01:10]}  Rc7 {[%clk 0:00:04]} 1-0


[Site "https://www.chess.com"]